fUSD/lending_fUSD_20241225
["ID","MTS","AMOUNT","RATE_DAILY","PERIOD"]
[346655153,1735153842426,-500.0,0.00012261,2]
[346655154,1735153842435,-500.0,0.00012261,2]
[346655156,1735153842445,-500.0,0.00012261,2]
[346655158,1735153842454,-1090.73,0.00012261,2]
[346655160,1735153842463,-500.0,0.00012261,2]
[346655162,1735153842473,-500.0,0.00012261,2]
[346655164,1735153842484,-516.58,0.00012261,2]
[346655165,1735153842495,-500.0,0.00012261,2]
[346655166,1735153842505,-308.65465792,0.00012261,2]
[346655167,1735153842516,-500.0,0.00012261,2]
[346655168,1735153842526,-2229.48,0.00012261,2]
[346655169,1735153842537,-522.62,0.00012261,2]
[346655170,1735153842547,-668.23,0.00012261,2]
[346655172,1735153842556,-500.0,0.00012261,2]
[346655174,1735153842566,-500.0,0.00012261,2]
[346655176,1735153842575,-500.0,0.00012261,2]
[346655177,1735153842586,-500.0,0.00012261,2]
[346655178,1735153842595,-500.0,0.00012261,2]
[346655179,1735153842605,-1286.93,0.00012261,2]
[346655180,1735153842615,-500.0,0.00012261,2]
[346655181,1735153842624,-500.0,0.00012261,2]
[346655182,1735153842634,-1926.83,0.00012261,2]
[346655183,1735153842644,-500.0,0.00012261,2]
[346655184,1735153842653,-500.0,0.00012261,2]
[346655185,1735153842663,-500.0,0.00012261,2]
[346655186,1735153842672,-500.0,0.00012261,2]
[346655187,1735153842681,-643.66,0.00012261,2]
[346655188,1735153842690,-500.0,0.00012261,2]
[346655189,1735153842700,-500.0,0.00012261,2]
[346655190,1735153842709,-500.0,0.00012261,2]
[346655191,1735153842718,-627.0,0.00012261,2]
[346655192,1735153842729,-500.0,0.00012261,2]
[346655193,1735153842738,-500.0,0.00012261,2]
[346655194,1735153842750,-500.0,0.00012261,2]
[346655195,1735153842760,-4039.1,0.00012261,2]
[346655196,1735153842769,-500.0,0.00012261,2]
[346655197,1735153842779,-500.0,0.00012261,2]
[346655198,1735153842788,-500.0,0.00012261,2]
[346655199,1735153842798,-500.0,0.00012261,2]
[346655200,1735153842808,-500.0,0.00012261,2]
[346655201,1735153842818,-500.0,0.00012261,2]
[346655202,1735153842827,-500.0,0.00012261,2]
[346655203,1735153842838,-1092.17,0.00012261,2]
[346655204,1735153842848,-3305.98,0.00012261,2]
[346655205,1735153842858,-500.0,0.00012261,2]
[346655206,1735153842867,-500.0,0.00012261,2]
[346655207,1735153842876,-500.0,0.00012261,2]
[346655208,1735153842888,-635.2,0.00012261,2]
[346655209,1735153842898,-500.0,0.00012261,2]
[346655210,1735153842907,-500.0,0.00012261,2]
[346655211,1735153842916,-1887.28,0.00012261,2]
[346655212,1735153842925,-500.0,0.00012261,2]
[346655213,1735153842934,-500.0,0.00012261,2]
[346655214,1735153842943,-500.0,0.00012261,2]
[346655216,1735153842952,-500.0,0.00012261,2]
[346655217,1735153842962,-500.0,0.00012261,2]
[346655218,1735153842971,-500.0,0.00012261,2]
[346655220,1735153842980,-511.05554815,0.00012261,2]
[346655222,1735153842990,-500.0,0.00012261,2]
[346655224,1735153842999,-967.87,0.00012261,2]
[346655226,1735153843008,-500.0,0.00012261,2]
[346655228,1735153843017,-2507.24,0.00012261,2]
[346655229,1735153843027,-500.0,0.00012261,2]
[346655230,1735153843036,-500.0,0.00012261,2]
[346655231,1735153843045,-211.69778969,0.00012261,2]
[346655232,1735153843055,-500.0,0.00012261,2]
[346655233,1735153843064,-500.0,0.00012261,2]
[346655234,1735153843074,-1082.92,0.00012261,2]
[346655235,1735153843084,-500.0,0.00012261,2]
[346655236,1735153843093,-627.34,0.00012261,2]
[346655237,1735153843103,-500.0,0.00012261,2]
[346655238,1735153843112,-500.0,0.00012261,2]
[346655239,1735153843121,-500.0,0.00012261,2]
[346655240,1735153843131,-500.0,0.00012261,2]
[346655241,1735153843140,-500.0,0.00012261,2]
[346655242,1735153843149,-500.0,0.00012261,2]
[346655243,1735153843159,-500.0,0.00012261,2]
[346655244,1735153843168,-500.0,0.00012261,2]
[346655245,1735153843178,-2707.34,0.00012261,2]
[346655247,1735153843190,-2473.94,0.00012261,2]
[346655249,1735153843200,-500.0,0.00012261,2]
[346655251,1735153843209,-152.6435899,0.00012261,2]
[346655253,1735153843219,-500.0,0.00012261,2]
[346655255,1735153843229,-500.0,0.00012261,2]
[346655256,1735153843239,-500.0,0.00012261,2]
[346655257,1735153843248,-500.0,0.00012261,2]
[346655258,1735153843259,-500.0,0.00012261,2]
[346655259,1735153843269,-500.0,0.00012261,2]
[346655260,1735153843278,-2841.81,0.00012261,2]
[346655261,1735153843290,-500.0,0.00012261,2]
[346655262,1735153843301,-500.0,0.00012261,2]
[346655263,1735153843310,-500.0,0.00012261,2]
[346655264,1735153843320,-500.0,0.00012261,2]
[346655265,1735153843330,-500.0,0.00012261,2]
[346655266,1735153843340,-500.0,0.00012261,2]
[346655267,1735153843349,-500.0,0.00012261,2]
[346655269,1735153843359,-500.0,0.00012261,2]
[346655270,1735153843368,-500.0,0.00012261,2]
[346655271,1735153843378,-270.08133299,0.00012261,2]
[346655272,1735153843389,-500.0,0.00012261,2]
[346655273,1735153843399,-500.0,0.00012261,2]
[346655274,1735153843408,-500.0,0.00012261,2]
[346655275,1735153843418,-500.0,0.00012261,2]
[346655276,1735153843428,-500.0,0.00012261,2]
[346655277,1735153843437,-500.0,0.00012261,2]
[346655278,1735153843448,-736.25,0.00012261,2]
[346655279,1735153843459,-506.27969744,0.00012261,2]
[346655280,1735153843469,-745.27,0.00012261,2]
[346655281,1735153843480,-596.11,0.00012261,2]
[346655282,1735153843491,-500.0,0.00012261,2]
[346655283,1735153843502,-500.0,0.00012261,2]
[346655284,1735153843513,-500.0,0.00012261,2]
[346655285,1735153843524,-500.0,0.00012261,2]
[346655286,1735153843533,-500.0,0.00012261,2]
[346655287,1735153843546,-500.0,0.00012261,2]
[346655288,1735153843555,-500.0,0.00012261,2]
[346655289,1735153843566,-500.0,0.00012261,2]
[346655290,1735153843576,-500.0,0.00012261,2]
[346655291,1735153843586,-500.0,0.00012261,2]
[346655292,1735153843595,-500.0,0.00012261,2]
[346655293,1735153843605,-500.0,0.00012261,2]
[346655294,1735153843614,-500.0,0.00012261,2]
[346655295,1735153843624,-500.0,0.00012261,2]
[346655296,1735153843634,-379.1,0.00012261,2]
[346655297,1735153843644,-505.15156816,0.00012261,2]
[346655298,1735153843653,-500.0,0.00012261,2]
[346655299,1735153843663,-500.0,0.00012261,2]
[346655300,1735153843672,-500.0,0.00012261,2]
[346655301,1735153843682,-500.0,0.00012261,2]
[346655302,1735153843691,-500.0,0.00012261,2]
[346655303,1735153843701,-500.0,0.00012261,2]
[346655304,1735153843712,-506.07868845,0.00012261,2]
[346655305,1735153843722,-500.0,0.00012261,2]
[346655306,1735153843732,-500.0,0.00012261,2]
[346655307,1735153843742,-729.8,0.00012261,2]
[346655308,1735153843751,-500.0,0.00012261,2]
[346655309,1735153843761,-500.0,0.00012261,2]
[346655310,1735153843771,-500.0,0.00012261,2]
[346655311,1735153843781,-500.0,0.00012261,2]
[346655312,1735153843791,-500.0,0.00012261,2]
[346655313,1735153843801,-500.0,0.00012261,2]
[346655314,1735153843811,-550.31,0.00012261,2]
[346655315,1735153843821,-500.0,0.00012261,2]
[346655316,1735153843831,-1124.35,0.00012261,2]
[346655317,1735153843840,-500.0,0.00012261,2]
[346655318,1735153843850,-500.0,0.00012261,2]
[346655319,1735153843859,-500.0,0.00012261,2]
[346655320,1735153843869,-500.0,0.00012261,2]
[346655321,1735153843878,-1135.37,0.00012261,2]
[346655322,1735153843889,-500.0,0.00012261,2]
[346655323,1735153843900,-500.0,0.00012261,2]
[346655324,1735153843909,-500.0,0.00012261,2]
[346655325,1735153843919,-500.0,0.00012261,2]
[346655326,1735153843928,-500.0,0.00012261,2]
[346655327,1735153843937,-500.0,0.00012261,2]
[346655328,1735153843946,-500.0,0.00012261,2]
[346655329,1735153843956,-504.39011301,0.00012261,2]
[346655330,1735153843965,-500.0,0.00012261,2]
[346655331,1735153843975,-500.0,0.00012261,2]
[346655332,1735153843984,-1381.17,0.00012261,2]
[346655333,1735153843993,-500.0,0.00012261,2]
[346655334,1735153844003,-854.47,0.00012261,2]
[346655335,1735153844012,-500.0,0.00012261,2]
[346655336,1735153844022,-1157.47,0.00012261,2]
[346655337,1735153844031,-500.0,0.00012261,2]
[346655338,1735153844040,-500.0,0.00012261,2]
[346655339,1735153844050,-500.0,0.00012261,2]
[346655340,1735153844060,-500.0,0.00012261,2]
[346655341,1735153844069,-500.0,0.00012262,2]
[346655342,1735153844079,-500.0,0.00012262,2]
[346655343,1735153844088,-500.0,0.00012262,2]
[346655344,1735153844097,-500.0,0.00012262,2]
[346655345,1735153844107,-500.0,0.00012262,2]
[346655346,1735153844116,-500.0,0.00012262,2]
[346655347,1735153844126,-500.0,0.00012262,2]
[346655348,1735153844135,-500.0,0.00012262,2]
[346655349,1735153844145,-514.0,0.00012262,2]
[346655350,1735153844155,-500.0,0.00012262,2]
[346655351,1735153844164,-500.0,0.00012262,2]
[346655352,1735153844174,-500.0,0.00012262,2]
[346655353,1735153844186,-500.0,0.00012262,2]
[346655354,1735153844195,-500.0,0.00012262,2]
[346655355,1735153844204,-500.0,0.00012262,2]
[346655356,1735153844213,-500.0,0.00012262,2]
[346655357,1735153844223,-500.0,0.00012262,2]
[346655358,1735153844232,-500.0,0.00012262,2]
[346655359,1735153844241,-500.0,0.00012262,2]
[346655360,1735153844252,-500.0,0.00012262,2]
[346655361,1735153844263,-618.32,0.00012262,2]
[346655362,1735153844272,-500.0,0.00012262,2]
[346655363,1735153844282,-500.0,0.00012262,2]
[346655364,1735153844291,-500.0,0.00012262,2]
[346655365,1735153844301,-500.0,0.00012262,2]
[346655366,1735153844310,-500.0,0.00012262,2]
[346655367,1735153844321,-558.82,0.00012262,2]
[346655368,1735153844330,-500.0,0.00012262,2]
[346655369,1735153844340,-500.0,0.00012262,2]
[346655370,1735153844352,-500.0,0.00012262,2]
[346655371,1735153844363,-500.0,0.00012262,2]
[346655372,1735153844374,-500.0,0.00012262,2]
[346655373,1735153844384,-500.0,0.00012262,2]
[346655374,1735153844394,-500.0,0.00012262,2]
[346655375,1735153844404,-500.0,0.00012262,2]
[346655376,1735153844414,-500.0,0.00012262,2]
[346655377,1735153844425,-500.0,0.00012262,2]
[346655378,1735153844435,-171.04,0.00012262,2]
[346655379,1735153844444,-500.0,0.00012262,2]
[346655380,1735153844455,-500.0,0.00012262,2]
[346655381,1735153844465,-500.0,0.00012262,2]
[346655382,1735153844474,-500.0,0.00012262,2]
[346655383,1735153844484,-500.0,0.00012262,2]
[346655384,1735153844494,-500.0,0.00012262,2]
[346655385,1735153844504,-500.0,0.00012262,2]
[346655386,1735153844513,-500.0,0.00012262,2]
[346655387,1735153844523,-500.0,0.00012262,2]
[346655388,1735153844532,-500.0,0.00012262,2]
[346655389,1735153844542,-500.0,0.00012262,2]
[346655390,1735153844552,-500.0,0.00012262,2]
[346655391,1735153844561,-500.0,0.00012262,2]
[346655392,1735153844571,-500.0,0.00012262,2]
[346655393,1735153844581,-500.0,0.00012262,2]
[346655394,1735153844591,-500.0,0.00012262,2]
[346655395,1735153844600,-500.0,0.00012262,2]
[346655396,1735153844610,-500.0,0.00012262,2]
[346655397,1735153844627,-500.0,0.00012262,2]
[346655398,1735153844641,-500.0,0.00012262,2]
[346655399,1735153844651,-500.0,0.00012262,2]
[346655400,1735153844662,-500.0,0.00012262,2]
[346655401,1735153844673,-500.0,0.00012262,2]
[346655402,1735153844683,-500.0,0.00012262,2]
[346655403,1735153844694,-636.92,0.00012262,2]
[346655404,1735153844704,-500.0,0.00012262,2]
[346655405,1735153844714,-500.0,0.00012262,2]
[346655406,1735153844725,-556.36811793,0.00012262,2]
[346655407,1735153844735,-500.0,0.00012262,2]
[346655408,1735153844745,-500.0,0.00012262,2]
[346655409,1735153844755,-500.0,0.00012262,2]
[346655410,1735153844766,-500.0,0.00012262,2]
[346655411,1735153844776,-500.0,0.00012262,2]
[346655412,1735153844786,-500.0,0.00012262,2]
[346655413,1735153844796,-500.0,0.00012262,2]
[346655414,1735153844806,-608.7,0.00012262,2]
[346655415,1735153844816,-500.0,0.00012262,2]
[346655416,1735153844826,-500.0,0.00012262,2]
[346655417,1735153844837,-500.0,0.00012262,2]
[346655418,1735153844847,-500.0,0.00012262,2]
[346655419,1735153844858,-500.0,0.00012262,2]
[346655420,1735153844868,-500.0,0.00012262,2]
[346655421,1735153844877,-500.0,0.00012262,2]
[346655422,1735153844888,-500.0,0.00012262,2]
[346655423,1735153844900,-500.0,0.00012262,2]
[346655424,1735153844910,-500.0,0.00012262,2]
[346655425,1735153844922,-500.0,0.00012262,2]
[346655426,1735153844933,-500.0,0.00012262,2]
[346655427,1735153844943,-500.0,0.00012262,2]
[346655428,1735153844954,-992.35,0.00012262,2]
[346655429,1735153844966,-500.0,0.00012262,2]
[346655430,1735153844977,-500.0,0.00012262,2]
[346655431,1735153844988,-500.0,0.00012262,2]
[346655432,1735153844999,-500.0,0.00012262,2]
[346655433,1735153845009,-500.0,0.00012262,2]
[346655434,1735153845020,-500.0,0.00012262,2]
[346655435,1735153845031,-500.0,0.00012262,2]
[346655436,1735153845042,-500.0,0.00012262,2]
[346655437,1735153845053,-500.0,0.00012262,2]
[346655438,1735153845063,-500.0,0.00012262,2]
[346655439,1735153845072,-500.0,0.00012262,2]
[346655440,1735153845084,-500.0,0.00012262,2]
[346655441,1735153845094,-500.0,0.00012262,2]
[346655442,1735153845104,-500.0,0.00012262,2]
[346655443,1735153845114,-500.0,0.00012262,2]
[346655444,1735153845124,-500.0,0.00012262,2]
[346655445,1735153845135,-500.0,0.00012262,2]
[346655446,1735153845146,-500.0,0.00012262,2]
[346655447,1735153845156,-500.0,0.00012262,2]
[346655448,1735153845168,-500.0,0.00012262,2]
[346655449,1735153845180,-500.0,0.00012262,2]
[346655450,1735153845372,-500.0,0.00012262,2]
[346655451,1735153845383,-500.0,0.00012262,2]
[346655452,1735153845392,-500.0,0.00012262,2]
[346655453,1735153845402,-500.0,0.00012262,2]
[346655454,1735153845411,-500.0,0.00012262,2]
[346655455,1735153845420,-553.71,0.00012262,2]
[346655456,1735153845430,-399.26794895,0.00012262,2]
[346655457,1735153845439,-500.0,0.00012262,2]
[346655458,1735153845450,-500.0,0.00012262,2]
[346655459,1735153845460,-500.0,0.00012262,2]
[346655460,1735153845471,-500.0,0.00012262,2]
[346655461,1735153845481,-500.0,0.00012262,2]
[346655462,1735153845490,-500.0,0.00012262,2]
[346655463,1735153845499,-500.0,0.00012262,2]
[346655464,1735153845510,-500.0,0.00012262,2]
[346655465,1735153845519,-500.0,0.00012262,2]
[346655466,1735153845528,-500.0,0.00012262,2]
[346655469,1735153845538,-500.0,0.00012262,2]
[346655472,1735153845547,-515.02,0.00012262,2]
[346655474,1735153845556,-500.0,0.00012262,2]
[346655477,1735153845565,-321.59098192,0.00012262,2]
[346655480,1735153845574,-500.0,0.00012262,2]
[346655482,1735153845583,-500.0,0.00012262,2]
[346655485,1735153845592,-500.0,0.00012262,2]
[346655488,1735153845601,-500.0,0.00012262,2]
[346655491,1735153845610,-500.0,0.00012262,2]
[346655494,1735153845619,-500.0,0.00012262,2]
[346655497,1735153845628,-500.0,0.00012262,2]
[346655499,1735153845638,-651.95,0.00012262,2]
[346655501,1735153845647,-500.0,0.00012262,2]
[346655503,1735153845658,-500.0,0.00012262,2]
[346655504,1735153845667,-500.0,0.00012262,2]
[346655506,1735153845676,-500.0,0.00012262,2]
[346655507,1735153845685,-500.0,0.00012262,2]
[346655508,1735153845694,-500.0,0.00012262,2]
[346655509,1735153845703,-500.0,0.00012262,2]
[346655510,1735153845712,-500.0,0.00012262,2]
[346655511,1735153845721,-500.0,0.00012262,2]
[346655512,1735153845731,-500.0,0.00012262,2]
[346655513,1735153845740,-500.0,0.00012262,2]
[346655514,1735153845749,-500.0,0.00012262,2]
[346655515,1735153845758,-500.0,0.00012262,2]
[346655516,1735153845767,-500.0,0.00012262,2]
[346655517,1735153845776,-500.0,0.00012262,2]
[346655518,1735153845785,-815.38,0.00012262,2]
[346655519,1735153845794,-500.0,0.00012262,2]
[346655520,1735153845803,-500.0,0.00012262,2]
[346655521,1735153845813,-500.0,0.00012262,2]
[346655522,1735153845822,-907.6,0.00012262,2]
[346655523,1735153845831,-500.0,0.00012262,2]
[346655524,1735153845841,-500.0,0.00012262,2]
[346655525,1735153845849,-500.0,0.00012262,2]
[346655526,1735153845859,-754.88,0.00012262,2]
[346655527,1735153845868,-500.0,0.00012262,2]
[346655528,1735153845877,-500.0,0.00012262,2]
[346655529,1735153845886,-500.0,0.00012262,2]
[346655530,1735153845895,-2987.27,0.00012262,2]
[346655531,1735153845910,-500.0,0.00012262,2]
[346655532,1735153845920,-13586.92,0.00012262,2]
[346655533,1735153845929,-904.59,0.00012262,2]
[346655534,1735153845939,-1709.73,0.00012262,2]
[346655535,1735153845948,-500.0,0.00012262,2]
[346655536,1735153845957,-500.0,0.00012262,2]
[346655537,1735153845966,-1135.57,0.00012262,2]
[346655538,1735153845975,-500.0,0.00012262,2]
[346655540,1735153845985,-617.85,0.00012262,2]
[346655542,1735153845994,-500.0,0.00012262,2]
[346655544,1735153846003,-208.64,0.00012262,2]
[346655545,1735153846012,-500.0,0.00012262,2]
[346655548,1735153846024,-1807.68,0.00012262,2]
[346655549,1735153846034,-500.0,0.00012262,2]
[346655551,1735153846044,-500.0,0.00012262,2]
[346655554,1735153846053,-10656.41,0.00012262,2]
[346655556,1735153846063,-500.0,0.00012262,2]
[346655558,1735153846073,-265.52,0.00012262,2]
[346655560,1735153846082,-500.0,0.00012262,2]
[346655561,1735153846093,-1343.39,0.00012262,2]
[346655563,1735153846102,-1154.39,0.00012262,2]
[346655565,1735153846111,-687.1,0.00012262,2]
[346655567,1735153846120,-1680.14,0.00012262,2]
[346655569,1735153846129,-500.0,0.00012262,2]
[346655571,1735153846140,-500.0,0.00012262,2]
[346655573,1735153846149,-1000.0,0.00012262,2]
[346655575,1735153846159,-805.37,0.00012262,2]
[346655577,1735153846169,-603.89,0.00012262,2]
[346655579,1735153846178,-2397.42,0.00012262,2]
[346655581,1735153846189,-1262.9,0.00012262,2]
[346655583,1735153846199,-565.0,0.00012316,2]
[346655585,1735153846208,-633.0,0.00012316,2]
[346655587,1735153846217,-1899.0,0.00012316,2]
[346655589,1735153846227,-818.0,0.00012316,2]
[346655591,1735153846236,-924.0,0.00012316,2]
[346655593,1735153846245,-3770.0,0.00012316,2]
[346655595,1735153846254,-1080.583,0.00012316,2]
[346655597,1735153846264,-536.0,0.00012316,2]
[346655599,1735153846273,-500.0,0.00012328,2]
[346655601,1735153846282,-500.0,0.00012328,2]
[346655603,1735153846292,-500.0,0.00012328,2]
[346655605,1735153846301,-500.0,0.00012328,2]
[346655607,1735153846311,-398.127,0.0001235,2]
[346655609,1735153846320,-272.18906865,0.00012399,2]
[346655611,1735153846329,-272.1890686,0.00012399,2]
[346655613,1735153846338,-272.1890686,0.00012399,2]
[346655615,1735153846347,-272.1890686,0.00012399,2]
[346655617,1735153846356,-272.1890686,0.00012399,2]
[346655619,1735153846365,-9588.04428271,0.00012399,2]
[346655621,1735153846375,-9588.04428266,0.00012399,2]
[346655623,1735153846385,-9588.04428266,0.00012399,2]
[346655624,1735153846394,-9588.04428266,0.00012399,2]
[346655625,1735153846406,-9588.04428266,0.00012399,2]
[346655626,1735153846415,-239.74,0.00012447,2]
[346655628,1735153846424,-9588.04428266,0.0001245,2]
[346655630,1735153846433,-272.1890686,0.0001245,2]
[346655632,1735153846443,-553.58,0.00012534,2]
[346655634,1735153846452,-1514.84,0.00012534,2]
[346655636,1735153846461,-269.24,0.00012534,2]
[346655638,1735153846471,-2690.19,0.00012534,2]
[346655640,1735153846480,-773.73,0.00012534,2]
[346655642,1735153846489,-511.25,0.00012534,2]
[346655644,1735153846498,-1952.74,0.00012534,2]
[346655646,1735153846507,-4424.92,0.00012534,2]
[346655648,1735153846516,-952.2,0.00012534,2]
[346655650,1735153846525,-500.0,0.00012534,2]
[346655652,1735153846535,-443.459421,0.00012534,2]
[346655654,1735153846544,-582.43,0.00012534,2]
[346655656,1735153846553,-1098.6,0.00012534,2]
[346655658,1735153846562,-533.10699,0.00012534,2]
[346655660,1735153846571,-500.0,0.00012534,2]
[346655662,1735153846581,-1081.65,0.00012534,2]
[346655664,1735153846589,-1079.5,0.00012534,2]
[346655666,1735153846598,-528.95,0.00012534,2]
[346655668,1735153846607,-762.29,0.00012534,2]
[346655670,1735153846617,-1323.68,0.00012534,2]
[346655672,1735153846626,-1376.97,0.00012534,2]
[346655674,1735153846636,-500.0,0.00012534,2]
[346655676,1735153846645,-961.2,0.00012534,2]
[346655677,1735153846654,-629.29,0.00012534,2]
[346655679,1735153846663,-3026.11,0.00012534,2]
[346655681,1735153846673,-1908.01,0.00012534,2]
[346655684,1735153846682,-1558.27,0.00012534,2]
[346655685,1735153846692,-812.61,0.00012534,2]
[346655687,1735153846701,-1380.72,0.00012534,2]
[346655688,1735153846710,-500.0,0.00012534,2]
[346655689,1735153846719,-500.0,0.00012534,2]
[346655690,1735153846729,-6358.15,0.00012534,2]
[346655691,1735153846738,-2484.48,0.00012534,2]
[346655693,1735153846746,-1452.37,0.00012534,2]
[346655695,1735153846755,-4931.04,0.00012534,2]
[346655697,1735153846764,-1163.17,0.00012534,2]
[346655699,1735153846774,-2019.4,0.00012534,2]
[346655701,1735153846783,-4210.99,0.00012534,2]
[346655703,1735153846792,-1460.97,0.00012534,2]
[346655705,1735153846801,-3089.18,0.00012534,2]
[346655707,1735153846810,-2990.56,0.00012534,2]
[346655709,1735153846818,-1283.53,0.00012534,2]
[346655711,1735153846827,-1486.15,0.00012534,2]
[346655713,1735153846837,-500.0,0.00012534,2]
[346655715,1735153846846,-2583.17,0.00012534,2]
[346655717,1735153846855,-1076.5,0.00012534,2]
[346655719,1735153846864,-907.61,0.00012534,2]
[346655721,1735153846873,-2630.83,0.00012534,2]
[346655723,1735153846883,-1648.46,0.00012534,2]
[346655725,1735153846894,-881.5,0.00012534,2]
[346655727,1735153846903,-1676.19,0.00012534,2]
[346655729,1735153846912,-6555.72,0.00012534,2]
[346655731,1735153846921,-6977.92,0.00012534,2]
[346655733,1735153846930,-500.0,0.00012534,2]
[346655735,1735153846940,-715.85,0.00012534,2]
[346655737,1735153846949,-735.32,0.00012534,2]
[346655739,1735153846958,-500.0,0.00012534,2]
[346655741,1735153846967,-500.0,0.00012534,2]
[346655743,1735153846976,-500.0,0.00012534,2]
[346655744,1735153846985,-851.53,0.00012534,2]
[346655745,1735153846994,-500.0,0.00012534,2]
[346655746,1735153847003,-1449.19,0.00012534,2]
[346655747,1735153847012,-1245.2,0.00012534,2]
[346655748,1735153847021,-500.0,0.00012534,2]
[346655749,1735153847030,-1906.27,0.00012534,2]
[346655750,1735153847039,-500.0,0.00012534,2]
[346655751,1735153847048,-500.0,0.00012534,2]
[346655752,1735153847057,-500.0,0.00012535,2]
[346655753,1735153847067,-500.0,0.00012535,2]
[346655755,1735153847075,-500.0,0.00012535,2]
[346655757,1735153847085,-293.38,0.00012535,2]
[346655759,1735153847094,-500.0,0.00012535,2]
[346655761,1735153847103,-500.0,0.00012535,2]
[346655763,1735153847112,-500.0,0.00012535,2]
[346655765,1735153847121,-500.0,0.00012535,2]
[346655767,1735153847130,-500.0,0.00012535,2]
[346655768,1735153847140,-500.0,0.00012535,2]
[346655770,1735153847149,-500.0,0.00012535,2]
[346655773,1735153847161,-500.0,0.00012535,2]
[346655775,1735153847170,-500.0,0.00012535,2]
[346655777,1735153847179,-500.0,0.00012535,2]
[346655778,1735153847193,-500.0,0.00012535,2]
[346655780,1735153847203,-500.0,0.00012535,2]
[346655783,1735153847213,-500.0,0.00012535,2]
[346655785,1735153847223,-500.0,0.00012535,2]
[346655786,1735153847236,-500.0,0.00012535,2]
[346655788,1735153847245,-500.0,0.00012535,2]
[346655790,1735153847254,-456.68,0.00012535,2]
[346655792,1735153847265,-500.0,0.00012535,2]
[346655794,1735153847275,-500.0,0.00012535,2]
[346655796,1735153847284,-500.0,0.00012535,2]
[346655798,1735153847293,-500.0,0.00012535,2]
[346655800,1735153847303,-500.0,0.00012535,2]
[346655801,1735153847312,-500.0,0.00012535,2]
[346655802,1735153847321,-500.0,0.00012535,2]
[346655803,1735153847330,-206.09,0.00012535,2]
[346655804,1735153847340,-500.0,0.00012535,2]
[346655805,1735153847350,-500.0,0.00012535,2]
[346655806,1735153847359,-500.0,0.00012535,2]
[346655807,1735153847368,-500.0,0.00012535,2]
[346655808,1735153847378,-500.0,0.00012535,2]
[346655809,1735153847388,-599.09,0.00012535,2]
[346655810,1735153847397,-500.0,0.00012535,2]
[346655811,1735153847407,-500.0,0.00012535,2]
[346655812,1735153847416,-500.0,0.00012535,2]
[346655813,1735153847425,-500.0,0.00012535,2]
[346655814,1735153847434,-500.0,0.00012535,2]
[346655815,1735153847447,-167.07,0.00012535,2]
[346655816,1735153847457,-500.0,0.00012535,2]
[346655817,1735153847467,-500.0,0.00012535,2]